Cogmind - Beta 13 @@@ ROGUE MODE // 2024.04.19 @ 00:59:51 Player: FlyingLemon Result: Self-destructed Performance ------------- Evolutions (2) 1000 Regions Visited (3) 600 Robots Destroyed (27) 135 Value Destroyed (1032) 1032 Prototype IDs (1) 20 Alien Tech Used (0) 0 Bonus (0) 0 TOTAL SCORE: 2787 Bonus ------- None Cogmind --------- Core Integrity 335/550 Matter 259/300 Energy 100/100 System Corruption 0% Temperature Cool (0) Movement Treading (170) Location -8/Materials Parts ------- > --- POWER (1) -------- (None) > --- PROPULSION (4) --- Armored Treads > --- UTILITY (4) ------ Medium Storage Unit Salvage Targeting Computer Hacking Suite Hacking Suite > --- WEAPON (2) ------- (None) > --- INVENTORY (10) --- Deuterium Engine Deuterium Engine Light Nuclear Core Flight Unit VTOL Module VTOL Module Hacking Suite Hacking Suite Minigun Rocket Launcher Peak State ------------ > --- POWER ------------ Deuterium Engine > --- PROPULSION ------- Armored Treads Armored Treads Armored Treads > --- UTILITY ---------- Medium Storage Unit Salvage Targeting Computer Hacking Suite Hacking Suite > --- WEAPON ----------- Minigun Flak Cannon > --- INVENTORY -------- Deuterium Engine Deuterium Engine Flight Unit VTOL Module VTOL Module Hacking Suite Hacking Suite Minigun Rocket Launcher [Rating: 29] Favorites ----------- Power Deuterium Engine Engine Deuterium Engine Propulsion Armored Treads Treads Armored Treads Leg Aluminum Leg Utility Hacking Suite Device Terrain Scanner Storage Medium Storage Unit Processor Salvage Targeting Computer Hackware Hacking Suite Weapon Flak Cannon Ballistic Gun Assault Rifle Ballistic Cannon Flak Cannon Launcher Rocket Launcher Build | -11 -10 -9 -8 ------- Run | Yrd Mat Mat Mat Slots Evolved 4 | . . 2 2 Power . | . . . . Propulsion 2 | . . 1 1 Utility 2 | . . 1 1 Weapon . | . . . . Parts Attached 26 | 6 2 16 2 Power 5 | 2 . 3 . Engine 5 | 2 . 3 . Core . | . . . . Reactor . | . . . . Propulsion 7 | 2 . 5 . Treads 6 | 2 . 4 . Leg 1 | . . 1 . Wheel . | . . . . Hover . | . . . . Flight . | . . . . Utility 8 | 1 1 5 1 Device 2 | . 1 1 . Storage 2 | 1 . 1 . Processor 2 | . . 2 . Hackware 2 | . . 1 1 Protection . | . . . . Artifact . | . . . . Weapon 6 | 1 1 3 1 Energy Gun . | . . . . Energy Cannon . | . . . . Ballistic Gun 4 | 1 1 1 1 Ballistic Cannon 1 | . . 1 . Launcher 1 | . . 1 . Special Weapon . | . . . . Impact Weapon . | . . . . Slashing Weapon . | . . . . Piercing Weapon . | . . . . Special Melee Weapon . | . . . . Unidentified Prototypes 1 | . . 1 . Parts Lost 7 | . . 2 5 Power 1 | . . . 1 Propulsion 2 | . . . 2 Utility 1 | . . 1 . Weapon 3 | . . 1 2 Highest Loss Streak 3 | . . 2 3 To Critical Strikes . | . . . . Average Slot Usage (%) 93 | . 99 94 87 Engine 10 | . 14 11 9 Treads 29 | . 28 32 26 Device 6 | . 13 8 . Storage 10 | . 14 11 9 Processor 6 | . . 7 9 Hackware 6 | . . 2 18 Ballistic Gun 12 | . 28 9 9 Ballistic Cannon 7 | . . 9 7 Naked Turns . | . . . . Heaviest Build 29 | 11 14 29 28 Greatest Support 60 | 40 40 60 60 Greatest Overweight (x) 1 | 1 . . 1 Average Overweight (x) . | . . . . Largest Inventory Capacity 10 | 8 8 10 10 Average Capacity 9 | 7 8 9 10 Most Carried 10 | 7 8 10 10 Average Carried 8 | 4 7 8 9 Final Capacity 10 | 8 8 10 10 Final Carried 10 | 7 8 10 10 Class Distribution -------------------- 71% | Mutant 28% | Hacker-Mutant Dominant Class ---------------- Mutant | -10/Materials Mutant | -9/Materials Hacker-Mutant | -8/Materials Resources | -11 -10 -9 -8 ----------- Run | Yrd Mat Mat Mat Matter Collected 1072 | 254 20 491 307 Remotely . | . . . . Salvage Created 871 | . 50 513 308 Parts 54 | . 1 34 19 Haulers Intercepted . | . . . . Recyclers Shooed 3 | . . 3 . Parts Field Recycled . | . . . . Retrieved Matter . | . . . . Parts Self-Destructed . | . . . . Prevented . | . . . . Kills | -11 -10 -9 -8 ------- Run | Yrd Mat Mat Mat Combat Hostiles Destroyed 24 | . 2 14 8 Guns 9 | . 2 3 4 Cannons 15 | . . 11 4 Classes Destroyed 7 | . 2 5 . Tunneler 1 | . . 1 . Recycler 1 | . . 1 . Operator 1 | . . 1 . Swarmer 1 | . 1 . . Grunt 14 | . 1 7 6 Duelist 2 | . . 1 1 Sentry 7 | . . 6 1 Best Kill Streak 5 | . 2 5 5 Combat Bots Only 5 | . 2 5 5 Max Kills in Single Turn 1 | . 1 1 1 Gunslinging . | . . . . Exploded . | . . . . Melee . | . . . . Uniques/NPCs Destroyed . | . . . . Combat | -11 -10 -9 -8 -------- Run | Yrd Mat Mat Mat Hostile Shots Fired 236 | . 25 89 122 Missed 70 | . 7 26 37 Damage Taken 2174 | . 157 883 1134 Core 337 | . 17 105 215 Absorbed by Shields . | . . . . Core Remaining (%) 88 | 100 93 73 . Volleys Fired 82 | . 6 48 28 Largest 2 | . 2 2 2 Hottest 69 | . 40 69 69 Shots Fired 150 | . 12 84 54 Gun 76 | . 12 37 27 Cannon 74 | . . 47 27 Launcher . | . . . . Special . | . . . . Kinetic 150 | . 12 84 54 Thermal . | . . . . Explosive . | . . . . Electromagnetic . | . . . . Robot Hit Streak 9 | . 4 9 8 Robot Miss Streak 12 | . 1 12 9 Penetration Max . | . . . . Secondary Targets . | . . . . Shots Hit Robots 110 | . 7 65 38 Core Hits 85 | . 4 52 29 Critical Kills 1 | . . 1 . Critical Parts Destroyed . | . . . . Critical Strikes 1 | . . 1 . Destroy 1 | . . 1 . Melee Attacks . | . . . . Impact . | . . . . Slashing . | . . . . Piercing . | . . . . Sneak Attacks . | . . . . Combat Hostiles . | . . . . Follow-up Attacks . | . . . . Damage Inflicted 2046 | . 72 1277 697 Guns 695 | . 72 324 299 Cannons 1287 | . . 889 398 Explosions 64 | . . 64 . Melee . | . . . . Ramming . | . . . . Kinetic 1982 | . 72 1213 697 Thermal . | . . . . Explosive . | . . . . Electromagnetic 64 | . . 64 . Impact . | . . . . Slashing . | . . . . Piercing . | . . . . Highest Corruption . | . . . . Average Corruption . | . . . . Corruption Purged . | . . . . Corruption Blocked . | . . . . Overload Shots . | . . . . Overflow Damage . | . . . . Projectiles . | . . . . Explosions . | . . . . Melee . | . . . . Knockbacks 43 | . . 23 20 Impact . | . . . . Kinetic 41 | . . 22 19 Secondary 2 | . . 1 1 Self-Inflicted Damage 71 | . . 71 . Shots 2 | . . 2 . Rammed . | . . . . Targets Rammed . | . . . . Kicked . | . . . . Crushed . | . . . . Highest Temperature 117 | . . 117 107 Average Temperature 34 | . . 38 31 Received Heat Transfer 720 | . 24 327 369 Siege Activations . | . . . . Robots Corrupted . | . . . . Combat Hostiles . | . . . . Parts Fried . | . . . . Impact Corruptions . | . . . . Robots Melted . | . . . . Combat Hostiles . | . . . . Parts Melted . | . . . . Heat Transferred . | . . . . Parts Sabotaged . | . . . . Parts Stolen . | . . . . Parts Stripped . | . . . . Power Chain Reactions 1 | . . 1 . Alert | -11 -10 -9 -8 ------- Run | Yrd Mat Mat Mat Peak Influence 312 | . 65 312 304 Initial 68 | . . 27 68 Average 126 | . 2 165 149 Maximum Alert Level 1 | . . 1 1 Low Security (%) 69 | 100 100 57 67 Level 1 30 | . . 42 32 Level 2 . | . . . . Level 3 . | . . . . Level 4 . | . . . . Level 5 . | . . . . High Security . | . . . . Max Security . | . . . . Squads Dispatched 4 | . 1 . 3 Investigation 1 | . 1 . . Extermination . | . . . . Reinforcement 1 | . . . 1 Assault . | . . . . Garrison 2 | . . . 2 Intercept . | . . . . Searches Triggered . | . . . . Construction Impeded . | . . . . Haulers Reinforced . | . . . . Active Scanning Responses . | . . . . Cargo Convoy Interrupts . | . . . . Stealth | -11 -10 -9 -8 --------- Run | Yrd Mat Mat Mat Distress Signals 4 | . . 2 2 Communications Jammed . | . . . . Distress Signals . | . . . . Times Spotted 49 | . 5 23 21 Peak Tracking Total 11 | . 3 6 11 Tactical Retreats 1 | . 1 . . Traps | -11 -10 -9 -8 ------- Run | Yrd Mat Mat Mat Traps Triggered 1 | . 1 . . Indirectly . | . . . . Trap Hack Attempts . | . . . . Triggered . | . . . . Disarmed . | . . . . Reprogrammed . | . . . . Reused . | . . . . Traps Extracted . | . . . . Installed . | . . . . Triggered . | . . . . Machines | -11 -10 -9 -8 ---------- Run | Yrd Mat Mat Mat Machines Disabled 3 | . . 3 . Max in Single Turn 3 | . . 3 . Machines Repaired . | . . . . Machines Dismantled . | . . . . Machines Sabotaged . | . . . . Overloaded Fab Kills . | . . . . Hacking | -11 -10 -9 -8 --------- Run | Yrd Mat Mat Mat Machines Accessed 8 | . 3 4 1 Terminals 7 | . 2 4 1 Fabricators . | . . . . Repair Stations . | . . . . Recycling Units 1 | . 1 . . Scanalyzers . | . . . . Garrison Access . | . . . . Total Hacks 10 | . 3 6 1 Successful 2 | . 1 1 . Failed 8 | . 2 5 1 Catastrophic 1 | . . . 1 Database Lockouts . | . . . . Manual 5 | . . 4 1 Terminals 9 | . 2 6 1 Fabricators . | . . . . Repair Stations . | . . . . Recycling Units 1 | . 1 . . Scanalyzers . | . . . . Garrison Access . | . . . . Terminal Hacks 1 | . . 1 . Zone Layout 1 | . . 1 . Fabricator Hacks . | . . . . Repair Station Hacks . | . . . . Recycling Unit Hacks 1 | . 1 . . Report Inventory 1 | . 1 . . Scanalyzer . | . . . . Garrison Access Hacks . | . . . . Unauthorized Hacks . | . . . . Terminals . | . . . . Fabricators . | . . . . Repair Stations . | . . . . Recycling Units . | . . . . Scanalyzers . | . . . . Garrison Access . | . . . . Data Cores Recovered 1 | . . 1 . Used . | . . . . Hacking Detections 7 | . 3 3 1 Full Trace Events . | . . . . Feedback Events . | . . . . Feedback Blocked . | . . . . Robot Schematics Acquired . | . . . . Robots Built . | . . . . Authchips . | . . . . Time . | . . . . Total Robot Build Rating . | . . . . Part Schematics Acquired . | . . . . Parts Built . | . . . . Authchips . | . . . . Time . | . . . . Total Part Build Rating . | . . . . Parts Repaired . | . . . . Time . | . . . . Parts Recycled . | . . . . Recycled Matter . | . . . . Retrieved Matter . | . . . . Retrieved Components . | . . . . Parts Scanalyzed . | . . . . Part Schematics Acquired . | . . . . Parts Damaged . | . . . . Bothacking | -11 -10 -9 -8 ------------ Run | Yrd Mat Mat Mat Used RIF Installer . | . . . . Robots Hacked . | . . . . Non-combat . | . . . . Combat . | . . . . Robot Hacks Applied . | . . . . Relay Couplers Released . | . . . . Fabnet Peak Effective % . | . . . . Robots Rewired . | . . . . Allies Hacked . | . . . . Hacks Repelled . | . . . . Allies | -11 -10 -9 -8 -------- Run | Yrd Mat Mat Mat Total Allies . | . . . . Largest Group . | . . . . Highest-Rated Group . | . . . . Highest-Rated Ally . | . . . . Total Orders . | . . . . Ally Attacks . | . . . . Total Damage . | . . . . Kills . | . . . . Allies Corrupted . | . . . . Allies Melted . | . . . . Intel | -11 -10 -9 -8 ------- Run | Yrd Mat Mat Mat Robot Analysis Total . | . . . . Derelict Logs Recovered . | . . . . Drone Launches . | . . . . Drone Recoveries . | . . . . Exploration | -11 -10 -9 -8 ------------- Run | Yrd Mat Mat Mat Turns Passed 1644 | 81 269 829 465 Spaces Moved 780 | 48 154 361 217 Core 12 | 12 . . . Treads 768 | 36 154 361 217 Legs . | . . . . Wheels . | . . . . Hover . | . . . . Flight . | . . . . Fastest Speed 50 | 50 160 160 170 Average Speed 166 | 139 160 169 171 Slowest Speed 250 | 160 160 170 250 Overloaded Moves . | . . . . Propulsion Burnouts . | . . . . Robots Hopped . | . . . . Cave-ins Triggered . | . . . . Exploration Rate (%) 25 | 4 26 45 26 Regions Visited 3 Branch Regions . Pre-discovered Areas . | . . . . Known Exits Taken . | . . . . Unknown Exits Taken 3 | 1 1 1 . Scrap Searched . | . . . . Spaces Dug . | . . . . Terrain Destroyed 2 | . . 2 . Melee . | . . . . Projectile . | . . . . AOE 2 | . . 2 . Terrain Rammed . | . . . . Walls Destroyed . | . . . . Machines Disabled . | . . . . Actions | -11 -10 -9 -8 --------- Run | Yrd Mat Mat Mat Total 987 | 59 165 501 262 Wait 56 | . 2 41 13 Move 777 | 47 153 360 217 Hop . | . . . . Pick Up 26 | 6 2 16 2 Fast Attach 13 | 5 1 7 . Attach 8 | . 1 5 2 Detach . | . . . . Swap 5 | 1 . 4 . Drop 20 | . . 20 . Fire 82 | . 6 48 28 Melee . | . . . . Ram . | . . . . Kick . | . . . . Crush . | . . . . Escape Stasis . | . . . . Rewire . | . . . . Trap . | . . . . Miscellaneous . | . . . . Route ------- -11/Scrapyard -10/Materials -9/Materials (discovered 3 exits: *Mat / [*Min] / [*Sto]) -8/Materials History --------- Turn | Location | Event 13 | -11/Scrapyard | Discovered new exit (range 15) 82 | -11/Scrapyard | Entered Materials 304 | -10/Materials | Build established: Mutant 319 | -10/Materials | Discovered new exit (range 6) 351 | -10/Materials | Entered another Materials area 351 | -9/Materials | Evolved 2 slots: Propulsion x1, Utility x1 848 | -9/Materials | Discovered new exit (range 19) 1038 | -9/Materials | Discovered new exit (range 7) 1148 | -9/Materials | Discovered new exit (range 8) 1180 | -9/Materials | Entered another Materials area 1180 | -8/Materials | Evolved 2 slots: Propulsion x1, Utility x1 1489 | -8/Materials | Build established: Hacker-Mutant 1539 | -8/Materials | Garrison activated, responded to threat 1645 | -8/Materials | Self-destructed Last Messages --------------- Current location identified: Materials K-01 Serf collects debris. K-01 Serf cleans the Processing Tank. W-25 Informer sends out distress signal. O-16 Technician knocked back. U-05 Engineer builds a Door. G-47 Trooper knocked back. G-47 Trooper calls for garrison reinforcements. ALERT: Activating Garrison Access M001. G-47 Trooper knocked back. Destroyed Aluminum Leg. G-47 Trooper destroyed. Flak Cannon destroyed. Arm. Treads destroyed. T-07 Excavator destroyed. Acquired 23 matter. T-07 Excavator is excavating. Arm. Treads destroyed. Minigun destroyed. Deuterium Engine destroyed. Map ----- +----------------------------------------------------+ | ???????????? #?????????????????????????????????? | | ?????????????????????????????????????????????????? | | ?????????????????????????????????????????????????? | | ??#??????????????????????????????????????????????? | | ? #??????????????????????????????????????????????? | | ? #??????????????????????????????????????????????? | | #??????????????????????????????????????????????? | | ???????????????????????????????????????????????? | | ########+#???????????????????????????????????????? | | ?????? ???????????????????????????? | | ????? ???? ????????????????????? | | ????? ? #???????????????????? | | ######+#????????# #???????????????????? | | ????????????????# ###?????????????????? | | ????????????????# ? ??????????????????? | | ????????????????# ? ??????????????????? | | ????????????????# ! """ k""??????????????????? | | ????????????????# """"" """"???""????????????? | | ????????????????# """"" """"" ""????????????? | | ?????????######## """"" """"" """???????????? | | ?????????# """ """s """??????????? | | ????###### s ?????????? | | ????+ s ?????????? | | ????###### a sa ???????????? | | ?????????# #??????????????????? | | ?????????# ###### #####@ #??????????????????? | | ?????????# #??? #??# #??????????????????? | | ########## #??# ###??# #??????????????????? | | ! | #??###?????# #??????????????????? | | != #??????????# #??????????????????? | | #??????????# #??????????????????? | | ##############??????????#g #??????????????????? | | ????????????????????????# ??????????????????? | | ????????????????????????#a!g ?????????????????? | | ????????????????????????? ]????????????????? | | ????????????????????????? ????????????????? | | ?????????????????????????# ???????????????? | | ?????????????????????????? """ ??????????????? | | ?????????????????????????? ""? ????????????????? | | ?????????????????????????? "????????????????????? | | ?????????????????????????? ?????????????????????? | | ?????????????????????????????????????????????????? | | ?????????????????????????????????????????????????? | | ?????????????????????????????????????????????????? | | ?????????????????????????????????????????????????? | | ?????????????????????????????????????????????????? | | ?????????????????????????????????????????????????? | | ?????????????????????????????????????????????????? | | ?????????????????????????????????????????????????? | | ?????????????????????????????????????????????????? | +----------------------------------------------------+ Best States ------------- Heat Dissipation 50 Energy Generation 14 Energy Capacity 275 Matter Stores 295 Matter Capacity 300 Sight Range 16 Terrain Scan Range 14 Terrain Scan Density 10 Evasion (%) 40 Recoil Reduction 3 Salvage Targeting 2 Offensive Hacking 20 Item Schematics ----------------- None Robot Schematics ------------------ None Fabricated ------------ Nothing Alien Tech Used ----------------- None Achievements -------------- None Challenges ------------ None Game ------ Seed PulseSkeletonCutter Manual? 0 Play Time 00:19:42 Cumulative 15.5 hours Start 2024.04.19 @ 00:44:10 End 2024.04.19 @ 00:59:51 Sessions 1 Manual Loads 0 Difficulty Rogue Special Mode None Game No. 22 Rogue 22 Adventurer 0 Explorer 0 Win Type - Total 0 Types 0/0/0/0/0/0/0/0/0 Lore% 22 Gallery% 26 Achievement% 21 Wizard Run 0 Options --------- Layout 0 ASCII 0 Keyboard 0 Movement Numpad Keybinds 0 Fullscreen 2 Font 24/Smallcaps Map View 76x50 Zoom Use 0% Tactical HUD 0 Map Filters NONE Filters NONE Steam 1 RUN: 2c6736b0-ae10-4ca6-bd2b-75430051887b